Cogmind - Beta 14 @@@ ROGUE MODE // 2024.08.13 @ 13:38:36 Player: f3-rnm Result: Core destroyed Performance ------------- Evolutions (9) 4500 Regions Visited (23) 4600 Robots Destroyed (101) 505 Value Destroyed (5150) 5150 Prototype IDs (63) 1260 Alien Tech Used (6) 1200 Bonus (7345) 7345 TOTAL SCORE: 24560 Bonus ------- High Alert Combat Kills 921 Follower Combat Kills 1257 Network Hubs Disabled 200 Registered with UFD 300 Met Warlord at Base 500 MAIN.C Attacked Warlord 500 Built Enhanced Grunts 300 A7 Reached Mainframe 300 Used Core Reset Matrix 3000 Scanned by Researcher 500 Friendly Fire -433 Cogmind --------- Core Integrity 0/1600 Matter 300/300 Energy 534/600 System Corruption 9% Temperature Cool (0) Movement Treading (145) Location -1/Access Parts ------- > --- POWER (3) -------- (None) > --- PROPULSION (8) --- Biometal Heavy Treads Biometal Leg > --- UTILITY (12) ----- Advanced Energy Well Advanced Melee Analysis Suite Advanced Actuator Array Experimental Weapon Shielding Layered Medium Armor Plating Hacking Suite Improved System Shield Microwarp Drive > --- WEAPON (3) ------- Vortex Lance Vortex Lance Vortex Lance > --- INVENTORY (5) ---- Experimental Energy Well (600) Compact Matter Pod (63) Experimental EM Disruption Field Antimissile System Hellfire Missile Launcher Peak State ------------ > --- POWER ------------ Quantum Reactor Quantum Reactor Quantum Reactor > --- PROPULSION ------- High-density Centrium Heavy Treads High-density Centrium Heavy Treads High-density Centrium Heavy Treads > --- UTILITY ---------- Coolant Network Large Storage Unit Experimental Energy Well Improved Melee Analysis Suite Thermal Barrier Hacking Suite Improved System Shield Improved System Shield Mapping Drone Bay Microwarp Drive > --- WEAPON ----------- Dispersion Rifle Dispersion Rifle Enhanced Nova Cannon > --- INVENTORY -------- Quantum Reactor Light Quantum Reactor Vortex Chain Reactor Advanced Actuator Array Experimental Weapon Shielding Experimental EM Disruption Field Experimental Force Field Antimissile System Subatomic Replicator Hellfire Missile Launcher Core Stripper Vortex Lance Vortex Lance [Rating: 213] Favorites ----------- Power Ion Engine Engine Ion Engine Power Core Light Fission Core Reactor Quantum Reactor Propulsion Light Treads Treads Light Treads Leg Biometal Leg Wheel Wheel Hover Unit Combat Linear Gravjet Flight Unit Cooled Cesium-ion Thruster Utility Improved System Shield Device Advanced Sensor Array Storage High-capacity Storage Unit Processor Experimental Signal Interpreter Hackware Improved System Shield Protection Hardened Medium Armor Plating Artifact Microwarp Drive Weapon Battle Rifle Energy Gun Particle Gun Energy Cannon Enhanced Nova Cannon Ballistic Gun Battle Rifle Ballistic Cannon Graviton Cannon Launcher Hellfire Missile Launcher Impact Weapon Thunder Hammer Slashing Weapon Scythe Piercing Weapon Vortex Lance Special Melee Weapon Improved Datajack Build | -11 -10 -10 -8 -8 -6 -6 -6 -6 -6 -5 -4 -4 -4 -4 -4 -4 -3 -3 -3 -2 -2 -2 -1 ------- Run | Yrd Mat Sub Rec Scr Fac Ext Cet Arc Hub Fac Fac Was Fac Upp Upp War Pro Res Tes Res Qua Sec Acc Slots Evolved 18 | . . . . . 8 . . . . 2 2 . . . . . . 2 . 2 . . 2 Power 2 | . . . . . . . . . . 1 . . . . . . . . . . . . 1 Propulsion 6 | . . . . . 4 . . . . . 1 . . . . . . 1 . . . . . Utility 9 | . . . . . 4 . . . . 1 1 . . . . . . 1 . 2 . . . Weapon 1 | . . . . . . . . . . . . . . . . . . . . . . . 1 Parts Attached 247 | 6 1 15 3 12 27 15 1 5 . 3 5 5 . 5 3 6 1 9 19 16 55 3 32 Power 32 | 1 . 1 . 2 6 1 . . . 1 2 . . . . . 1 1 1 4 6 . 5 Engine 11 | 1 . 1 . 1 4 . . . . 1 2 . . . . . 1 . . . . . . Core 4 | . . . . 1 2 1 . . . . . . . . . . . . . . . . . Reactor 17 | . . . . . . . . . . . . . . . . . . 1 1 4 6 . 5 Propulsion 44 | 2 . 1 1 3 8 1 . . . 1 2 . . . . . . 2 3 2 12 . 6 Treads 12 | 2 . 1 1 3 . . . . . . . . . . . . . . . . 4 . 1 Leg 1 | . . . . . . . . . . . . . . . . . . . . . . . 1 Wheel 1 | . . . . . . . . . . . . . . . . . . . . . . . 1 Hover 10 | . . . . . . . . . . . . . . . . . . . . . 7 . 3 Flight 20 | . . . . . 8 1 . . . 1 2 . . . . . . 2 3 2 1 . . Utility 96 | 1 1 5 1 4 7 10 1 3 . 1 1 1 . 5 1 . . 5 6 6 23 2 12 Device 38 | . . 2 . 2 3 3 . 1 . . 1 1 . . . . . 5 1 2 12 . 5 Storage 13 | 1 1 1 . 2 1 1 . . . . . . . . . . . . 1 . 3 . 2 Processor 10 | . . . . . 1 2 . . . . . . . . . . . . 1 2 3 . 1 Hackware 8 | . . . . . 1 1 . 1 . 1 . . . 1 . . . . 1 . 1 . 1 Protection 24 | . . 2 1 . 1 3 1 1 . . . . . 4 1 . . . 2 2 4 . 2 Artifact 3 | . . . . . . . . . . . . . . . . . . . . . . 2 1 Weapon 75 | 2 . 8 1 3 6 3 . 2 . . . 4 . . 2 6 . 1 9 4 14 1 9 Energy Gun 8 | 1 . 2 1 . . . . . . . . . . . . 2 . . . . . . 2 Energy Cannon 4 | . . . . . . . . . . . . . . . 1 . . . 1 . 2 . . Ballistic Gun 10 | 1 . 3 . 1 . . . 1 . . . 2 . . . . . . . . . . 2 Ballistic Cannon 5 | . . . . . . . . . . . . . . . . . . . 1 . 4 . . Launcher 16 | . . 1 . . 3 1 . . . . . 2 . . . . . . 2 1 5 1 . Special Weapon . | . . . . . . . . . . . . . . . . . . . . . . . . Impact Weapon 10 | . . . . . 2 1 . . . . . . . . . . . 1 2 2 1 . 1 Slashing Weapon 7 | . . 2 . 1 . . . . . . . . . . 1 3 . . . . . . . Piercing Weapon 8 | . . . . . . . . . . . . . . . . 1 . . . 1 2 . 4 Special Melee Weapon 7 | . . . . 1 1 1 . 1 . . . . . . . . . . 3 . . . . Unidentified Prototypes 31 | . . . . . 2 . 1 . . . . 1 . 1 . 1 . 4 5 1 14 . 1 Parts Lost 52 | . . 3 . . 3 2 . . 1 . . . . . . . . . . 5 20 3 15 Power 8 | . . 1 . . 1 . . . . . . . . . . . . . . 1 3 . 2 Propulsion 18 | . . . . . 1 1 . . . . . . . . . . . . . 2 7 1 6 Utility 20 | . . 1 . . 1 1 . . 1 . . . . . . . . . . 1 9 2 4 Weapon 6 | . . 1 . . . . . . . . . . . . . . . . . 1 1 . 3 Highest Loss Streak 9 | . . 2 . . 2 1 . . 1 . . . . . . . . . . 2 9 1 4 To Critical Strikes 2 | . . . . . . . . . . . . . . . . . . . . . 1 1 . Average Slot Usage (%) 79 | . 85 85 94 78 52 66 77 76 79 78 76 84 85 85 83 84 85 85 85 82 81 67 65 Engine 8 | . 14 13 14 9 4 . . . . 3 7 9 9 9 9 9 9 6 1 . . . . Core 1 | . . . . 1 . 6 9 9 7 1 . . . . . . . . . . . . . Reactor 1 | . . . . . . . . . . . . . . . . . . 1 7 5 5 4 8 Treads 17 | . 28 28 28 24 . . . . . . . . . . . . . . . . 3 13 5 Flight 4 | . . . . . 15 13 13 13 14 15 17 19 19 19 19 19 19 21 21 29 8 . . Device 3 | . . . . 2 9 9 9 11 7 5 4 8 9 4 4 4 4 7 5 4 8 16 8 Storage 9 | . 14 6 14 13 5 4 4 4 4 5 4 4 4 4 4 4 4 4 4 4 5 8 5 Processor 2 | . . . . . . 13 13 13 12 10 9 9 9 9 9 9 9 8 8 7 10 4 2 Hackware 4 | . . . . . 4 8 9 9 9 15 14 14 14 18 19 19 19 17 17 16 13 12 12 Protection 6 | . . 7 8 5 3 2 9 6 9 10 9 9 9 9 9 9 9 8 7 8 7 . 2 Energy Gun 4 | . 14 9 14 4 . . . . . . . . . . . . . . . . . . 1 Ballistic Gun 7 | . 14 17 14 7 . . . 3 4 5 4 2 4 4 . . . . . . . . . Slashing Weapon 3 | . . 1 . 6 . . . . . . . . . . 1 3 4 1 . . . . . Special Melee Weapon 1 | . . . . 2 2 3 4 4 4 5 4 4 4 4 4 4 4 4 4 2 . . . Peak Build Rating 213 | 6 7 17 20 29 78 112 117 125 125 114 118 124 124 124 122 124 123 154 169 141 206 211 213 Average Rating 56 | 4 6 11 18 21 69 105 115 118 117 109 114 121 124 120 118 119 122 145 150 124 151 200 170 On Entrance 98 | . 6 6 17 20 28 78 111 117 125 104 111 115 124 124 121 119 120 123 153 130 124 206 193 Naked Turns 34 | . . . . 34 . . . . . . . . . . . . . . . . . . . Heaviest Build 208 | 10 30 50 58 208 43 42 41 43 43 35 38 41 39 39 38 35 36 40 47 46 92 103 119 Greatest Support 360 | 40 40 40 40 48 42 48 44 44 44 35 40 45 40 40 40 40 45 48 48 61 360 360 270 Greatest Overweight (x) 34 | . . 1 1 13 1 . . . . . . 1 . . . . . . 1 . 1 . 34 Average Overweight (x) . | . . . 1 2 . . . . . . . . . . . . . . . . . . . Largest Inventory Capacity 35 | 8 15 20 20 35 35 15 10 10 10 10 10 10 10 10 10 10 10 10 10 10 25 15 15 Average Capacity 18 | 6 14 11 20 26 15 10 10 10 10 10 10 10 10 10 10 10 10 10 10 10 14 15 10 Most Carried 27 | 3 7 19 20 27 23 12 10 10 10 10 10 10 10 10 10 10 10 10 10 10 15 15 15 Average Carried 14 | 1 5 8 19 20 14 9 10 9 10 9 8 10 10 9 10 9 10 9 9 9 13 14 10 Final Capacity 35 | 8 15 20 20 35 15 10 10 10 10 10 10 10 10 10 10 10 10 10 10 10 15 15 5 Final Carried 27 | 3 7 19 20 27 13 10 10 10 10 9 10 10 10 10 10 10 10 9 10 10 15 13 5 Class Distribution -------------------- 47% | Mutant 19% | Hauler-Mutant 11% | Hacker-Scout 8% | Hacker-Mutant Dominant Class ---------------- Mutant | -10/Materials Mutant | -10/Subcaves Mutant | -8/Recycling Mutant | -8/Scraptown Mutant | -6/Factory Hacker-Scout | -6/Extension Commander-Scout | -6/Cetus Commander-Scout | -6/Archives Commander-Scout | -6/Hub_04(d) Scavenger-Scout | -5/Factory Scavenger-Scout | -4/Factory Scavenger-Assassin | -4/Waste Scavenger-Scout | -4/Factory Hacker-Scout | -4/Upper Caves Hacker-Scout | -4/Upper Caves Hacker-Scout | -4/Warlord Hacker-Scout | -3/Proximity Caves Hacker-Scout | -3/Research Hacker-Scout | -3/Testing Hacker-Sprinter | -2/Research Hacker-Mutant | -2/Quarantine Hacker-Mutant | -2/Section 7 Hacker-Gladiator | -1/Access Resources | -11 -10 -10 -8 -8 -6 -6 -6 -6 -6 -5 -4 -4 -4 -4 -4 -4 -3 -3 -3 -2 -2 -2 -1 ----------- Run | Yrd Mat Sub Rec Scr Fac Ext Cet Arc Hub Fac Fac Was Fac Upp Upp War Pro Res Tes Res Qua Sec Acc Matter Collected 3966 | 241 42 388 30 110 31 453 70 86 . 135 14 . . 111 . 296 45 . 61 250 1138 . 465 Remotely . | . . . . . . . . . . . . . . . . . . . . . . . . Salvage Created 5035 | 14 188 396 . . 15 680 . 238 77 . 14 575 . . . . . . 96 217 1669 319 537 Parts 167 | 1 9 33 . . 5 14 . 17 7 . 4 . . . . . . . 9 7 17 17 27 Haulers Intercepted 3 | . 1 . . . . . . . . . . . . . . . . . . . 2 . . Recyclers Shooed . | . . . . . . . . . . . . . . . . . . . . . . . . Parts Field Recycled . | . . . . . . . . . . . . . . . . . . . . . . . . Retrieved Matter . | . . . . . . . . . . . . . . . . . . . . . . . . Parts Self-Destructed 15 | . . 15 . . . . . . . . . . . . . . . . . . . . . Prevented . | . . . . . . . . . . . . . . . . . . . . . . . . Kills | -11 -10 -10 -8 -8 -6 -6 -6 -6 -6 -5 -4 -4 -4 -4 -4 -4 -3 -3 -3 -2 -2 -2 -1 ------- Run | Yrd Mat Sub Rec Scr Fac Ext Cet Arc Hub Fac Fac Was Fac Upp Upp War Pro Res Tes Res Qua Sec Acc Combat Hostiles Destroyed 71 | . 4 12 . . 2 10 . . . . . 4 . . . . . . 3 6 17 7 6 Melee 7 | . . . . . . . . . . . . . . . . . . . . 1 1 . 5 Guns 17 | . 4 12 . . . . . . . . . . . . . . . . . . . . 1 Cannons 5 | . . . . . . . . . . . . . . . . . . . . . 2 3 . AOE 35 | . . . . . 2 7 . . . . . 4 . . . . . . 3 4 11 4 . Classes Destroyed 19 | 1 3 2 . . 1 3 . 1 1 . 1 1 . . . . . . 1 . 3 . 1 Worker 5 | 1 . . . . . . . . 2 . . . . . . . . . . 2 . . . Builder 2 | . . . . . . . . . 1 . . . . . . . . . . . . . 1 Tunneler 1 | . . . . . . . . . . . 1 . . . . . . . . . . . . Hauler 3 | . 1 . . . . . . . . . . . . . . . . . . . 2 . . Recycler 6 | . . . . . . 2 . . . . . . . . . . . . . . 3 . 1 Operator 6 | . . . . . . . . 5 1 . . . . . . . . . . . . . . Turret 1 | . . 1 . . . . . . . . . . . . . . . . . . . . . Watcher 3 | . . . . . . . . . . . . . . . . . . . 1 1 1 . . Swarmer 22 | . 2 4 . . . . . . . . . . . . . . . . 3 5 4 4 . Cutter 2 | . . . . . 2 . . . . . . . . . . . . . . . . . . Grunt 12 | . 2 . . . . 6 . . . . . . . . . . . . . . 3 . 1 Researcher 2 | . . . . . . . . . . . . . . . . . . . . . 2 . . Sentry 3 | . . . . . . 2 . . . . . . . . . . . . . 1 . . . Hunter 10 | . . . . . . 1 . . . . . . . . . . . . . . 5 3 1 Programmer 7 | . . . . . . . . . . . . . . . . . . . . . 4 . 3 Q-Series 1 | . . . . . . . . . . . . . . . . . . . . . . . 1 Compactor 4 | . . . . . . . . . . . . 4 . . . . . . . . . . . Fortress 1 | . . . . . . . . . . . . . . . . . . . . . 1 . . Subdweller 8 | . . 8 . . . . . . . . . . . . . . . . . . . . . Thug 1 | . . . . . . 1 . . . . . . . . . . . . . . . . . Guerrilla 1 | . . . . . . . . 1 . . . . . . . . . . . . . . . Best Kill Streak 7 | 1 2 4 . . 2 7 . 3 3 . 1 4 . . . . . . 3 5 7 7 4 Combat Bots Only 7 | . 2 4 . . 2 7 . . . . . 4 . . . . . . 3 5 7 7 4 Max Kills in Single Turn 4 | 1 1 2 . . 1 4 . 1 3 . 1 1 . . . . . . 3 4 4 4 2 Gunslinging 1 | . . 1 . . . . . . . . . . . . . . . . . . . . . Exploded 4 | . . . . . 1 4 . . . . . 1 . . . . . . 3 4 4 4 . Melee 2 | . . . . . . . . . . . . . . . . . . . . 1 1 . 2 Uniques/NPCs Destroyed . | . . . . . . . . . . . . . . . . . . . . . . . . Combat | -11 -10 -10 -8 -8 -6 -6 -6 -6 -6 -5 -4 -4 -4 -4 -4 -4 -3 -3 -3 -2 -2 -2 -1 -------- Run | Yrd Mat Sub Rec Scr Fac Ext Cet Arc Hub Fac Fac Was Fac Upp Upp War Pro Res Tes Res Qua Sec Acc Hostile Shots Fired 1242 | . 20 87 . . 128 108 . . 64 13 . . . . 6 4 12 16 42 83 298 136 225 Missed 526 | . 10 31 . . 73 57 . . 41 7 . . . . 2 2 8 10 25 41 104 52 63 Damage Taken 15549 | . 112 1134 . . 908 734 . . 426 122 . 16 . . 84 38 79 169 293 979 4412 1212 4831 Core 3086 | . 18 123 . . 87 69 . . 41 . . . . . 23 . . . 22 189 550 359 1605 Absorbed by Shields 1194 | . . . . . . 94 . . . . . . . . . . . . . . . 590 510 Reduced by Siege Mode 75 | . . . . . . . . . . . . . . . . . . . . . 75 . . Redirected to Core 88 | . . . . . . . . . . . . . . . . . . . . . . 88 . Redirected to Shielding 459 | . . . . . . . . . 12 . . . . . . . 10 19 . 61 323 . 34 Ignored by Resistances 20 | . . . . . . . . . . . . . . . . . . . . . . 20 . Regen/Repaired (Parts) 23 | . . . . . . . . . . . . . . . . 18 . . 5 . . . . Core Remaining (%) 77 | 100 . . . 43 . . . . 76 100 . . . . . . 98 . 98 . . 24 . Volleys Fired 198 | 2 24 51 . . 2 3 . 23 1 10 1 10 . 1 . 1 . . 1 1 26 34 7 Largest 3 | 2 2 2 . . 1 1 . 1 1 1 1 1 . 1 . 1 . . 1 1 1 1 3 Hottest 225 | 60 60 105 . . 30 45 . 33 33 33 33 45 . 33 . 225 . . 52 60 70 120 209 Shots Fired 270 | 4 42 95 . . 2 3 . 23 2 10 1 10 . 1 . 1 . . 1 1 26 35 13 Gun 186 | 4 42 91 . . . . . 23 2 10 1 . . 1 . 1 . . . . . . 11 Cannon 47 | . . . . . . . . . . . . . . . . . . . . . 11 34 2 Launcher 37 | . . 4 . . 2 3 . . . . . 10 . . . . . . 1 1 15 1 . Special . | . . . . . . . . . . . . . . . . . . . . . . . . Kinetic 133 | 2 24 57 . . . . . 23 2 10 1 . . 1 . . . . . . 11 . 2 Thermal 104 | 2 18 38 . . . . . . . . . . . . . 1 . . . . . 34 11 Explosive 33 | . . . . . 2 3 . . . . . 10 . . . . . . 1 1 15 1 . Electromagnetic . | . . . . . . . . . . . . . . . . . . . . . . . . Robot Hit Streak 21 | 3 7 21 . . 10 14 . 8 4 4 3 8 . . . . . . . 1 5 3 10 Robot Miss Streak 4 | . 4 3 . . . 2 . 4 . 3 . 3 . . . . . . 1 . 2 3 1 Penetration Max 1 | . . . . . . . . 1 . . . . . . . . . . . . . . 1 Secondary Targets 2 | . . 2 . . . . . . . . . . . . . . . . . . . . . Max Gunslinging Chain 1 | . . 1 . . . . . . . . . . . . . . . . . . . . . Shots Hit Robots 276 | 3 22 59 . . 2 46 . 16 1 6 1 10 . . . . . . 1 9 45 15 40 Core Hits 174 | 2 12 23 . . 4 29 . 11 8 1 1 24 . . . . . . 5 4 28 9 13 Critical Kills 1 | . . . . . . . . . . . . . . . . . . . . . 1 . . Critical Parts Destroyed 13 | . . 1 . . . 2 . 2 . . . . . . . . . . . 1 7 . . Critical Strikes 21 | . . 5 . . . 2 . 2 . . . . . . . . . . . 1 8 . 3 Burn 3 | . . 3 . . . . . . . . . . . . . . . . . . . . . Destroy 3 | . . 2 . . . . . 1 . . . . . . . . . . . . . . . Smash 12 | . . . . . . 2 . 1 . . . . . . . . . . . 1 8 . . Sunder 3 | . . . . . . . . . . . . . . . . . . . . . . . 3 Melee Attacks 194 | . . 2 . . 8 47 . 2 . . . . . . 1 1 . 15 9 22 43 . 44 Kinetic 8 | . . . . . . . . . . . . . . . . . . . . . 4 . 4 Impact 114 | . . . . . 8 28 . 2 . . . . . . . . . 12 9 18 37 . . Slashing 7 | . . 2 . . . . . . . . . . . . 1 1 . 3 . . . . . Piercing . | . . . . . . . . . . . . . . . . . . . . . . . . Entropic 46 | . . . . . . . . . . . . . . . . . . . . 4 2 . 40 Sneak Attacks 33 | . . . . . . 22 . 2 . . . . . . . . . . . 3 5 . 1 Combat Hostiles 2 | . . . . . . 1 . . . . . . . . . . . . . . . . 1 Follow-up Attacks 12 | . . . . . . . . . . . . . . . . . . . . . 1 . 11 Damage Inflicted 19143 | 31 203 980 . . 102 1764 . 582 389 145 21 4382 . . . . . . 260 1527 4896 1174 2687 Guns 2119 | 31 203 887 . . . . . 494 43 145 21 . . . . . . . . . . . 295 Cannons 1076 | . . . . . . . . . . . . . . . . . . . . . 462 614 . Explosions 9519 | . . 93 . . 102 664 . . 327 . . 4382 . . . . . . 214 612 2565 560 . Melee 6392 | . . . . . . 1100 . 88 . . . . . . . . . . 46 915 1869 . 2374 Ramming 37 | . . . . . . . . . 19 . . . . . . . . . . . . . 18 Kinetic 2378 | 9 90 656 . . . . . 494 43 145 21 . . . . . . . . . 586 . 334 Thermal 1289 | 22 113 324 . . . . . . . . . . . . . . . . . . . 614 216 Explosive 9099 | . . . . . 102 664 . . . . . 4382 . . . . . . 214 612 2565 560 . Electromagnetic 327 | . . . . . . . . . 327 . . . . . . . . . . . . . . Impact 3579 | . . . . . . 1100 . 88 . . . . . . . . . . 46 600 1745 . . Slashing . | . . . . . . . . . . . . . . . . . . . . . . . . Piercing . | . . . . . . . . . . . . . . . . . . . . . . . . Entropic 2434 | . . . . . . . . . . . . . . . . . . . . 315 . . 2119 Highest Corruption 10 | . . . . . 2 3 3 3 2 . . 5 5 5 5 5 . . 1 2 10 10 9 Average Corruption 3 | . . . . . 1 2 3 2 2 . . 5 5 5 5 5 . . 1 2 10 10 3 Corruption Purged 3 | . . . . . . . . 3 . . . . . . . . . . . . . . . Corruption Blocked . | . . . . . . . . . . . . . . . . . . . . . . . . Effects 53 | . . . . . . 12 4 3 1 . . 1 3 1 4 . . . 1 2 8 7 6 Message Errors 12 | . . . . . . 2 1 2 . . . . . 1 . . . . . 1 3 2 . Matter Fused 20 | . . . . . . 5 3 . . . . 1 1 . 3 . . . 1 1 2 2 1 Heat Flow Errors 4 | . . . . . . 2 . . . . . . . . . . . . . . . 1 1 Energy Discharges 5 | . . . . . . 1 . . . . . . . . 1 . . . . . 2 1 . Parts Rejected 1 | . . . . . . . . . . . . . . . . . . . . . . . 1 Data Loss (minor) 5 | . . . . . . . . 1 . . . . 2 . . . . . . . . . 2 Data Loss (major) 2 | . . . . . . 1 . . . . . . . . . . . . . . 1 . . Misfires 2 | . . . . . . . . . 1 . . . . . . . . . . . . 1 . Alerts 2 | . . . . . . 1 . . . . . . . . . . . . . . . . 1 Overload Shots 1 | . . . . . . . . . . . . . . . . 1 . . . . . . . Overflow Damage 2232 | . . 4 . . . 148 . 19 16 . . . . . . . . . 18 442 1350 10 225 Projectiles 43 | . . . . . . . . . . . . . . . . . . . . . 43 . . Explosions 376 | . . 4 . . . . . . 16 . . . . . . . . . 18 176 152 10 . Melee 1813 | . . . . . . 148 . 19 . . . . . . . . . . . 266 1155 . 225 Knockbacks 17 | . . . . . . 6 . . . . . . . . . . . . . 2 9 . . Impact 13 | . . . . . . 6 . . . . . . . . . . . . . 2 5 . . Kinetic 3 | . . . . . . . . . . . . . . . . . . . . . 3 . . Secondary 1 | . . . . . . . . . . . . . . . . . . . . . 1 . . Self-Inflicted Damage 420 | . . 59 . . 94 . . . 114 . . 17 . . . . . . . . 86 50 . Shots 7 | . . 1 . . 2 . . . 1 . . 1 . . . . . . . . 1 1 . Rammed 5 | . . . . . . . . . 2 . . . . . . . . . . . . . 3 Targets Rammed 5 | . . . . . . . . . 2 . . . . . . . . . . . . . 3 Kicked . | . . . . . . . . . . . . . . . . . . . . . . . . Crushed . | . . . . . . . . . . . . . . . . . . . . . . . . Highest Temperature 322 | 20 76 26 . . 21 272 24 53 81 3 . 32 . . 8 176 147 114 188 322 28 66 172 Average Temperature 52 | 15 30 9 . . 3 58 6 21 34 2 . 16 . . 8 73 70 20 68 77 18 66 104 Received Heat Transfer 1476 | . 48 156 . . 84 236 . . 60 54 . . . . 18 37 30 27 103 126 189 9 299 Effects 2 | . . . . . . . . . . . . . . . . . . . . 2 . . . Shutdowns 1 | . . . . . . . . . . . . . . . . . . . . 1 . . . Energy Bleed 1 | . . . . . . . . . . . . . . . . . . . . 1 . . . Siege Activations 1 | . . . . . . . . . . . . . . . . . . . . . 1 . . Total Turns 26 | . . . . . . . . . . . . . . . . . . . . . 26 . . Longest Duration 26 | . . . . . . . . . . . . . . . . . . . . . 26 . . Robots Corrupted 11 | . . . . . . 3 . . . . . . . . . . . . . 2 6 . . Combat Hostiles 6 | . . . . . . 3 . . . . . . . . . . . . . 1 2 . . Parts Fried 21 | . . . . . . 5 . . . . . . . . . . . . . 2 14 . . Impact Corruptions 38 | . . . . . . 7 . 1 . . . . . . . . . . . 7 23 . . Robots Melted . | . . . . . . . . . . . . . . . . . . . . . . . . Combat Hostiles . | . . . . . . . . . . . . . . . . . . . . . . . . Parts Melted 5 | . . 1 . . . . . . . . . . . . . . . . . . . 2 2 Heat Transferred 2104 | 50 250 990 . . . . . . . . . . . . . . . . . . . 518 296 Parts Sabotaged . | . . . . . . . . . . . . . . . . . . . . . . . . Parts Stolen . | . . . . . . . . . . . . . . . . . . . . . . . . Parts Stripped 18 | . . . . . . . . . . . . . . . . . . . . . 18 . . Power Chain Reactions . | . . . . . . . . . . . . . . . . . . . . . . . . Alert | -11 -10 -10 -8 -8 -6 -6 -6 -6 -6 -5 -4 -4 -4 -4 -4 -4 -3 -3 -3 -2 -2 -2 -1 ------- Run | Yrd Mat Sub Rec Scr Fac Ext Cet Arc Hub Fac Fac Was Fac Upp Upp War Pro Res Tes Res Qua Sec Acc Peak Influence 970 | 5 110 . . . 246 521 407 430 788 652 324 200 154 . . . . 228 452 769 970 746 573 Initial 495 | . 3 . . . . 12 291 162 150 385 319 113 140 . . . . 50 128 169 387 495 447 Average 320 | . 52 . . . 56 245 378 366 438 546 322 166 152 . . . . 143 343 492 597 602 416 Maximum Alert Level 3 | . . . . . 1 2 2 2 3 2 1 1 . . . . . 1 2 3 3 3 2 Low Security (%) 33 | 100 100 . 100 . 92 37 . . 37 . . 62 100 . . . . 52 4 3 . . . Level 1 28 | . . . . . 7 53 24 88 10 1 100 37 . . . . . 47 59 41 16 . 36 Level 2 31 | . . . . . . 8 75 11 33 98 . . . . . . . . 35 41 51 65 63 Level 3 6 | . . . . . . . . . 18 . . . . . . . . . . 13 32 34 . Level 4 . | . . . . . . . . . . . . . . . . . . . . . . . . Level 5 . | . . . . . . . . . . . . . . . . . . . . . . . . High Security . | . . . . . . . . . . . . . . . . . . . . . . . . Max Security . | . . . . . . . . . . . . . . . . . . . . . . . . Squads Dispatched 31 | . . . . . 3 1 . . 2 4 . . . . . . . 2 2 5 7 . 5 Investigation 9 | . . . . . 1 1 . . . 3 . . . . . . . 1 2 1 . . . Extermination 7 | . . . . . . . . . . 1 . . . . . . . . . 1 3 . 2 Reinforcement 11 | . . . . . 2 . . . 2 . . . . . . . . 1 . 1 3 . 2 Assault 2 | . . . . . . . . . . . . . . . . . . . . . 1 . 1 Garrison 2 | . . . . . . . . . . . . . . . . . . . . 2 . . . Intercept . | . . . . . . . . . . . . . . . . . . . . . . . . Searches Triggered 2 | . . . . . . . . . . . . . . . . . . . 1 1 . . . Construction Impeded 1 | . . . . . . . . . 1 . . . . . . . . . . . . . . Haulers Reinforced . | . . . . . . . . . . . . . . . . . . . . . . . . Active Scanning Responses . | . . . . . . . . . . . . . . . . . . . . . . . . Cargo Convoy Interrupts . | . . . . . . . . . . . . . . . . . . . . . . . . Stealth | -11 -10 -10 -8 -8 -6 -6 -6 -6 -6 -5 -4 -4 -4 -4 -4 -4 -3 -3 -3 -2 -2 -2 -1 --------- Run | Yrd Mat Sub Rec Scr Fac Ext Cet Arc Hub Fac Fac Was Fac Upp Upp War Pro Res Tes Res Qua Sec Acc Distress Signals 16 | . 1 . . . 1 3 1 . 4 . . . . . . 1 . . . 1 2 1 1 Communications Jammed . | . . . . . . . . . . . . . . . . . . . . . . . . Distress Signals . | . . . . . . . . . . . . . . . . . . . . . . . . Times Spotted 309 | . 6 23 . . 19 25 5 16 22 12 . 6 1 4 5 3 5 5 14 39 48 11 40 Peak Tracking Total 21 | . 3 4 . . 11 8 5 1 21 6 . 5 1 4 5 2 5 6 8 13 14 8 19 Tactical Retreats 50 | . . 8 . . 2 2 . . . 1 . . . 2 1 1 2 . 1 10 10 . 10 Traps | -11 -10 -10 -8 -8 -6 -6 -6 -6 -6 -5 -4 -4 -4 -4 -4 -4 -3 -3 -3 -2 -2 -2 -1 ------- Run | Yrd Mat Sub Rec Scr Fac Ext Cet Arc Hub Fac Fac Was Fac Upp Upp War Pro Res Tes Res Qua Sec Acc Traps Triggered 8 | . . 4 . . 1 1 . . . . 1 . . . . . . . . 1 . . . Indirectly . | . . . . . . . . . . . . . . . . . . . . . . . . Trap Hack Attempts . | . . . . . . . . . . . . . . . . . . . . . . . . Triggered . | . . . . . . . . . . . . . . . . . . . . . . . . Disarmed . | . . . . . . . . . . . . . . . . . . . . . . . . Reprogrammed . | . . . . . . . . . . . . . . . . . . . . . . . . Reused . | . . . . . . . . . . . . . . . . . . . . . . . . Traps Extracted . | . . . . . . . . . . . . . . . . . . . . . . . . Installed . | . . . . . . . . . . . . . . . . . . . . . . . . Triggered 7 | . . . . . . . . . . . . . . . . 6 . . . 1 . . . Most Traps Carried 1 | . . . . 1 1 . . . . . . . . . . . . . . . . . . Machines | -11 -10 -10 -8 -8 -6 -6 -6 -6 -6 -5 -4 -4 -4 -4 -4 -4 -3 -3 -3 -2 -2 -2 -1 ---------- Run | Yrd Mat Sub Rec Scr Fac Ext Cet Arc Hub Fac Fac Was Fac Upp Upp War Pro Res Tes Res Qua Sec Acc Machines Disabled 41 | . . 3 . . 1 2 . 3 18 1 . . . . . 1 . . 5 . 4 3 . Max in Single Turn 18 | . . 2 . . 1 . . 1 18 . . . . . . 1 . . 1 . 1 1 . Garrison Access 3 | . . . . . . . . . . . 1 . 1 . . . . 1 . . . . . Network Hub 1 | . . . . . . . . . 1 . . . . . . . . . . . . . . Machines Repaired . | . . . . . . . . . . . . . . . . . . . . . . . . Machines Dismantled . | . . . . . . . . . . . . . . . . . . . . . . . . Machines Sabotaged . | . . . . . . . . . . . . . . . . . . . . . . . . Overloaded Fab Kills . | . . . . . . . . . . . . . . . . . . . . . . . . Hacking | -11 -10 -10 -8 -8 -6 -6 -6 -6 -6 -5 -4 -4 -4 -4 -4 -4 -3 -3 -3 -2 -2 -2 -1 --------- Run | Yrd Mat Sub Rec Scr Fac Ext Cet Arc Hub Fac Fac Was Fac Upp Upp War Pro Res Tes Res Qua Sec Acc Machines Accessed 72 | . . 1 . 2 2 16 1 . 3 5 1 . 4 . 1 7 . 7 8 8 5 . 1 Terminals 43 | . . . . . 1 16 1 . 3 2 . . 2 . . . . 3 6 5 3 . 1 Fabricators 7 | . . . . . 1 . . . . 2 . . . . . . . 2 1 1 . . . Repair Stations 1 | . . . . . . . . . . . . . . . . . . . 1 . . . . Recycling Units 3 | . . . . . . . . . . 1 . . 1 . . . . . . 1 . . . Scanalyzers 3 | . . . . . . . . . . . . . . . . . . 1 . . 2 . . Garrison Access 4 | . . . . . . . . . . . 1 . 1 . . . . 1 . 1 . . . Total Hacks 185 | . . 1 . 19 9 32 1 . 4 15 1 . 14 . 1 15 . 14 18 23 12 . 6 Successful 114 | . . 1 . 19 4 17 1 . 2 9 1 . 6 . 1 15 . 11 8 9 9 . 1 Failed 71 | . . . . . 5 15 . . 2 6 . . 8 . . . . 3 10 14 3 . 5 Catastrophic 13 | . . . . . 2 1 . . 1 1 . . 2 . . . . . 4 2 . . . Database Lockouts . | . . . . . . . . . . . . . . . . . . . . . . . . Manual 38 | . . . . . . 2 2 . 2 9 . . 6 . . . . 3 5 7 2 . . Terminals 115 | . . . . . 6 32 1 . 4 9 . . 11 . . . . 6 15 15 10 . 6 Fabricators 16 | . . . . . 3 . . . . 5 . . . . . . . 4 2 2 . . . Repair Stations 1 | . . . . . . . . . . . . . . . . . . . 1 . . . . Recycling Units 6 | . . . . . . . . . . 1 . . 2 . . . . . . 3 . . . Scanalyzers 4 | . . . . . . . . . . . . . . . . . . 2 . . 2 . . Garrison Access 7 | . . . . . . . . . . . 1 . 1 . . . . 2 . 3 . . . Terminal Hacks 85 | . . 1 . 19 2 17 1 . 2 4 . . 2 . 1 15 . 3 5 6 6 . 1 Record 31 | . . . . 18 . . . . . . . . . . . 13 . . . . . . . Part Schematic 4 | . . . . . 1 1 . . . 1 . . 1 . . . . . . . . . . Prototype ID Bank 1 | . . . . . . . . . . . . . . . . . . . 1 . . . . Open Door 15 | . . . . . . 11 1 . . . . . . . 1 2 . . . . . . . Level Access Points 2 | . . . . . . . . . . . . . . . . . . . 1 1 . . . Branch Access Points 2 | . . . . . . . . . . 1 . . . . . . . . . 1 . . . Machine Index 1 | . . . . . . . . . . . . . . . . . . . . . 1 . . Terminal Index 2 | . . . . . . 1 . . . . . . 1 . . . . . . . . . . Fabricator Index 2 | . . . . . . . . . . 1 . . . . . . . . . 1 . . . Repair Station Index 1 | . . . . . . . . . . . . . . . . . . 1 . . . . . Recycling Unit Index 1 | . . . . . . . . . 1 . . . . . . . . . . . . . . Alert Level 4 | . . . . . . 1 . . . . . . . . . . . . . . 2 . 1 Unreport Threat 1 | . . . . . . . . . . . . . . . . . . . . . 1 . . Security Status 2 | . . . . . 1 . . . . . . . . . . . . . 1 . . . . Patrol Status 2 | . . . . . . . . . . . . . . . . . . . . 1 1 . . Recall Extermination 1 | . . . . . . . . . . . . . . . . . . . . 1 . . . Recall Reinforcements 1 | . . . . . . . . . . . . . . . . . . 1 . . . . . Hauler Manifests 3 | . . . . . . 1 . . . . . . . . . . . 1 1 . . . . Registered Components 1 | . . . . . . . . . . . . . . . . . . . . . 1 . . Registered Prototypes 2 | . . . . . . . . . . . . . . . . . . . 1 1 . . . Zone Layout 4 | . . . . . . 2 . . 1 1 . . . . . . . . . . . . . Derelict Proto ID Bank 2 | . . 1 . 1 . . . . . . . . . . . . . . . . . . . Fabricator Hacks 13 | . . . . . 2 . . . . 4 . . . . . . . 4 1 2 . . . Network Status 1 | . . . . . . . . . . . . . . . . . . 1 . . . . . Load Schematic 6 | . . . . . 1 . . . . 2 . . . . . . . 1 1 1 . . . Build 6 | . . . . . 1 . . . . 2 . . . . . . . 2 . 1 . . . Repair Station Hacks . | . . . . . . . . . . . . . . . . . . . . . . . . Recycling Unit Hacks 2 | . . . . . . . . . . . . . 2 . . . . . . . . . . Process 1 | . . . . . . . . . . . . . 1 . . . . . . . . . . Retrieve Matter 1 | . . . . . . . . . . . . . 1 . . . . . . . . . . Scanalyzer 4 | . . . . . . . . . . . . . . . . . . 2 . . 2 . . Insert Component 3 | . . . . . . . . . . . . . . . . . . 1 . . 2 . . Analyze 1 | . . . . . . . . . . . . . . . . . . 1 . . . . . Garrison Access Hacks 3 | . . . . . . . . . . . 1 . 1 . . . . 1 . . . . . Seal Access 3 | . . . . . . . . . . . 1 . 1 . . . . 1 . . . . . Unauthorized Hacks 7 | . . . . . . . . . . 1 . . 1 . . . . 1 2 1 1 . . Terminals 3 | . . . . . . . . . . . . . 1 . . . . 1 . . 1 . . Assimilate 2 | . . . . . . . . . . . . . 1 . . . . . . . 1 . . Skim 1 | . . . . . . . . . . . . . . . . . . 1 . . . . . Fabricators 1 | . . . . . . . . . . . . . . . . . . . 1 . . . . Recompile 1 | . . . . . . . . . . . . . . . . . . . 1 . . . . Repair Stations 3 | . . . . . . . . . . 1 . . . . . . . . 1 1 . . . Patch 1 | . . . . . . . . . . . . . . . . . . . 1 . . . . Recycling Units . | . . . . . . . . . . . . . . . . . . . . . . . . Scrapoids 2 | . . . . . . . . . . 1 . . . . . . . . . 1 . . . Scanalyzers . | . . . . . . . . . . . . . . . . . . . . . . . . Garrison Access . | . . . . . . . . . . . . . . . . . . . . . . . . Data Cores Recovered 1 | . . . . . . 1 . . . . . . . . . . . . . . . . . Used . | . . . . . . . . . . . . . . . . . . . . . . . . Hacking Detections 38 | . . . . . 1 9 1 . 2 3 . . 3 . . . . 5 6 5 2 . 1 Full Trace Events 5 | . . . . . 1 1 . . . 2 . . . . . . . 1 . . . . . Feedback Events . | . . . . . . . . . . . . . . . . . . . . . . . . Feedback Blocked . | . . . . . . . . . . . . . . . . . . . . . . . . Robot Schematics Acquired 2 | . . . . . . . . . . . . . . . . . . . . . 2 . . Robots Built . | . . . . . . . . . . . . . . . . . . . . . . . . Authchips . | . . . . . . . . . . . . . . . . . . . . . . . . Time . | . . . . . . . . . . . . . . . . . . . . . . . . Total Robot Build Rating . | . . . . . . . . . . . . . . . . . . . . . . . . Part Schematics Acquired 10 | . . . . . 1 1 . . . 1 . . 1 . . . . 1 . . 5 . . Parts Built 7 | . . . . . 2 . . . . 2 . . . . . . . 1 . 2 . . . Authchips 1 | . . . . . . . . . . . . . . . . . . . . 1 . . . Time 507 | . . . . . 47 . . . . 201 . . . . . . . 213 . 46 . . . Total Part Build Rating 45 | . . . . . 10 . . . . 8 . . . . . . . 9 . 18 . . . Parts Repaired . | . . . . . . . . . . . . . . . . . . . . . . . . Time . | . . . . . . . . . . . . . . . . . . . . . . . . Parts Recycled . | . . . . . . . . . . . . . . . . . . . . . . . . Recycled Matter 23 | . . . . . . . . . . . . . 23 . . . . . . . . . . Retrieved Matter 23 | . . . . . . . . . . . . . 23 . . . . . . . . . . Retrieved Components . | . . . . . . . . . . . . . . . . . . . . . . . . Parts Scanalyzed 1 | . . . . . . . . . . . . . . . . . . 1 . . . . . Part Schematics Acquired 1 | . . . . . . . . . . . . . . . . . . 1 . . . . . Parts Damaged . | . . . . . . . . . . . . . . . . . . . . . . . . Bothacking | -11 -10 -10 -8 -8 -6 -6 -6 -6 -6 -5 -4 -4 -4 -4 -4 -4 -3 -3 -3 -2 -2 -2 -1 ------------ Run | Yrd Mat Sub Rec Scr Fac Ext Cet Arc Hub Fac Fac Was Fac Upp Upp War Pro Res Tes Res Qua Sec Acc Used RIF Installer . | . . . . . . . . . . . . . . . . . . . . . . . . Robots Hacked . | . . . . . . . . . . . . . . . . . . . . . . . . Non-combat . | . . . . . . . . . . . . . . . . . . . . . . . . Combat . | . . . . . . . . . . . . . . . . . . . . . . . . Robot Hacks Applied . | . . . . . . . . . . . . . . . . . . . . . . . . Relay Couplers Released . | . . . . . . . . . . . . . . . . . . . . . . . . Fabnet Peak Effective % . | . . . . . . . . . . . . . . . . . . . . . . . . Robots Rewired 13 | . . . . . . 13 . . . . . . . . . . . . . . . . . Allies Hacked . | . . . . . . . . . . . . . . . . . . . . . . . . Hacks Repelled . | . . . . . . . . . . . . . . . . . . . . . . . . Allies | -11 -10 -10 -8 -8 -6 -6 -6 -6 -6 -5 -4 -4 -4 -4 -4 -4 -3 -3 -3 -2 -2 -2 -1 -------- Run | Yrd Mat Sub Rec Scr Fac Ext Cet Arc Hub Fac Fac Was Fac Upp Upp War Pro Res Tes Res Qua Sec Acc Total Allies 49 | . . . . . . 24 5 . . 5 . . 1 . 2 . . . . 5 1 . 6 Largest Group 13 | . . . . . . 12 13 13 10 5 . . 1 1 2 2 . . . 5 1 . 6 Highest-Rated Group 854 | . . . . . . 501 854 838 636 235 . . 26 26 76 76 . . . 323 45 . 89 Highest-Rated Ally 159 | . . . . . . 159 159 143 96 47 . . 26 26 38 38 . . . 67 45 . 15 Total Orders 11 | . . . . 3 1 1 . 3 . . . . . . . . . . . . . . 3 STAY 3 | . . . . . . 1 . 2 . . . . . . . . . . . . . . . FOLLOW 1 | . . . . . . . . 1 . . . . . . . . . . . . . . . EXPLORE 1 | . . . . 1 . . . . . . . . . . . . . . . . . . . RETURN 6 | . . . . 2 1 . . . . . . . . . . . . . . . . . 3 Ally Attacks 246 | . . . . . . 62 62 28 17 39 . . . . . . . . . 38 . . . Total Damage 6342 | . . . . . . 1818 1140 609 524 1060 . . . . . . . . . 1191 . . . Kills 42 | . . . . . . 10 7 4 7 8 . . . . . . . . . 6 . . . Allies Corrupted . | . . . . . . . . . . . . . . . . . . . . . . . . Allies Melted . | . . . . . . . . . . . . . . . . . . . . . . . . Intel | -11 -10 -10 -8 -8 -6 -6 -6 -6 -6 -5 -4 -4 -4 -4 -4 -4 -3 -3 -3 -2 -2 -2 -1 ------- Run | Yrd Mat Sub Rec Scr Fac Ext Cet Arc Hub Fac Fac Was Fac Upp Upp War Pro Res Tes Res Qua Sec Acc Robot Analysis Total . | . . . . . . . . . . . . . . . . . . . . . . . . Derelict Logs Recovered 5 | . . . . 4 . . . . . . . . . 1 . . . . . . . . . Drone Launches 18 | . . . . 6 3 . . . . . . . . . . . . . . . . . 9 Drone Recoveries 17 | . . . . 6 3 . . . . . . . . . . . . . . . . . 8 Exploration | -11 -10 -10 -8 -8 -6 -6 -6 -6 -6 -5 -4 -4 -4 -4 -4 -4 -3 -3 -3 -2 -2 -2 -1 ------------- Run | Yrd Mat Sub Rec Scr Fac Ext Cet Arc Hub Fac Fac Was Fac Upp Upp War Pro Res Tes Res Qua Sec Acc Turns Passed 19538 | 106 534 3346 617 8385 426 787 268 370 59 256 54 96 140 140 154 428 99 238 269 481 1056 169 1060 Spaces Moved 14006 | 58 189 1671 250 2394 528 881 129 177 168 452 102 160 347 305 334 1021 275 459 624 1060 1296 156 970 Core 116 | 3 . . . 112 . . . . . . . . . . . . . . . . . . 1 Treads 4909 | 55 189 1671 250 2282 . . . . . . . . . . . . . . . . 128 52 282 Legs 80 | . . . . . . . . . . . . . . . . . . . . . . . 80 Wheels 3 | . . . . . . . . . . . . . . . . . . . . . . . 3 Hover 1004 | . . . . . . . . . . . . . . . . . . . . . 1004 . . Flight 7186 | . . . . . 528 881 129 177 168 452 102 160 347 305 334 1021 275 459 624 1060 164 . . Fastest Speed 7 | 50 160 160 240 50 30 24 30 30 30 30 27 20 27 27 27 27 20 21 17 7 15 160 110 Average Speed 117 | 154 160 183 243 341 43 33 30 30 30 30 27 27 27 27 29 29 27 25 21 16 51 160 202 Slowest Speed 1750 | 160 160 240 245 970 96 40 30 30 30 30 30 93 27 27 30 30 30 27 98 20 160 160 1750 Overloaded Moves 57 | . . . . . . 12 . . . . . 8 . . . . 12 . . 25 . . . Propulsion Burnouts . | . . . . . . . . . . . . . . . . . . . . . . . . Robots Hopped 53 | . . . . . 12 5 . . 6 11 . . . . . . . 2 3 12 2 . . Cave-ins Triggered . | . . . . . . . . . . . . . . . . . . . . . . . . Microwarps 68 | . . . . . . . . . . . . . . . . . . . . . . 9 59 Exploration Rate (%) 42 | 6 20 54 36 87 21 71 57 77 23 10 4 75 8 58 65 91 51 8 55 25 78 8 24 Regions Visited 23 Branch Regions 14 Pre-discovered Areas 7 | . . . . 5 . . . . . . . . . 1 . 1 . . . . . . . Known Exits Taken 15 | . . . . . 1 1 1 1 1 1 . . 1 1 1 1 1 1 1 1 . 1 . Unknown Exits Taken 6 | 1 1 1 1 1 . . . . . . . . . . . . . . . . 1 . . Scrap Searched 13 | . . 4 . 6 . . . . . . . . . 2 . . 1 . . . . . . Spaces Dug 55 | . . . . . 7 . . . . . . . . . 1 1 . 13 2 11 9 3 8 Terrain Destroyed 637 | . . 58 . . 18 62 . 2 164 . . 104 . . 1 1 . 13 12 29 153 12 8 Melee 50 | . . . . . 7 . . . . . . . . . 1 1 . 13 2 11 9 . 6 Projectile 18 | . . . . . . . . 2 . . . . . . . . . . . . 2 12 2 AOE 569 | . . 58 . . 11 62 . . 164 . . 104 . . . . . . 10 18 142 . . Terrain Rammed . | . . . . . . . . . . . . . . . . . . . . . . . . Walls Destroyed . | . . . . . . . . . . . . . . . . . . . . . . . . Machines Disabled . | . . . . . . . . . . . . . . . . . . . . . . . . Actions | -11 -10 -10 -8 -8 -6 -6 -6 -6 -6 -5 -4 -4 -4 -4 -4 -4 -3 -3 -3 -2 -2 -2 -1 --------- Run | Yrd Mat Sub Rec Scr Fac Ext Cet Arc Hub Fac Fac Was Fac Upp Upp War Pro Res Tes Res Qua Sec Acc Total 16574 | 68 384 1857 262 2606 706 1315 359 467 169 553 127 189 392 362 387 1145 298 557 738 1314 1586 104 629 Wait 2269 | . 166 84 3 139 123 352 227 250 5 92 15 13 46 42 46 101 22 63 69 208 91 2 110 Move 13244 | 57 188 1670 249 2393 506 870 128 176 157 430 102 159 346 304 333 1020 274 454 617 1036 1291 60 424 Hop 47 | . . . . . 9 5 . . 5 10 . . . . . . . 2 3 11 2 . . Pick Up 163 | 3 4 19 3 50 7 9 1 4 . 3 1 1 . 3 1 6 . 6 3 8 23 1 7 Fast Attach 129 | 6 1 6 1 7 4 1 1 4 . 1 2 1 . 2 2 4 . 1 15 9 36 1 24 Attach 70 | . . 3 1 3 15 12 . . . 1 3 . . 1 . . . 3 1 2 18 2 5 Detach 34 | . . . 1 1 7 4 . . . . 3 . . 1 . 1 . 1 1 . 12 1 1 Swap 51 | . . 6 1 2 8 2 . 1 . 1 . 4 . 2 1 2 1 5 3 5 2 1 4 Drop 171 | . 1 12 3 11 17 4 2 7 . 5 . 1 . 6 3 9 1 7 16 12 37 2 15 Fire 198 | 2 24 51 . . 2 3 . 23 1 10 1 10 . 1 . 1 . . 1 1 26 34 7 Melee 178 | . . 2 . . 8 47 . 2 . . . . . . 1 1 . 15 9 22 42 . 29 Ram 1 | . . . . . . . . . 1 . . . . . . . . . . . . . . Kick . | . . . . . . . . . . . . . . . . . . . . . . . . Crush 3 | . . . . . . . . . . . . . . . . . . . . . . . 3 Escape Stasis 12 | . . . . . . 6 . . . . . . . . . . . . . . 6 . . Rewire . | . . . . . . . . . . . . . . . . . . . . . . . . Trap . | . . . . . . . . . . . . . . . . . . . . . . . . Miscellaneous 4 | . . 4 . . . . . . . . . . . . . . . . . . . . . Route ------- -11/Scrapyard -10/Materials -10/Subcaves (discovered 2 exits: [*Mat] / [*Rec]) -8/Recycling -8/Scraptown (discovered 2 exits: *Fac x2) -6/Factory (discovered 6 exits: *Fac x2 / Low x2 / *Ext x2) -6/Extension (discovered 2 exits: *Fac / *Cet) -6/Cetus -6/Archives (discovered 3 exits: *Fac / *Hub x2) -6/Hub_04(d) -5/Factory (discovered 3 exits: *Fac / Upp x2) -4/Factory -4/Waste -4/Factory -4/Upper Caves -4/Upper Caves (discovered 2 exits: Res / *War) -4/Warlord -3/Proximity Caves -3/Research (discovered 4 exits: Res x3 / *Tes) -3/Testing -2/Research (discovered 5 exits: Acc x3 / *Qua x2) -2/Quarantine (discovered 2 exits: *Acc / [*Sec]) -2/Section 7 -1/Access History --------- Turn | Location | Event 8 | -11/Scrapyard | Discovered new exit (range 14) 107 | -11/Scrapyard | Entered Materials 309 | -10/Materials | Build established: Mutant 616 | -10/Materials | Discovered new exit (range 7) 641 | -10/Materials | Entered Subcaves 957 | -10/Subcaves | Discovered new exit (range 7) 960 | -10/Subcaves | Shifting Twisted Machinery released Riot Gun 973 | -10/Subcaves | Shifting Twisted Machinery released Scrap Shield 1150 | -10/Subcaves | Visited 4L-MR0's lab 1374 | -10/Subcaves | Shifting Twisted Machinery released Battle Rifle 1670 | -10/Subcaves | A swath of the cavern ceiling suddenly collapsed 1715 | -10/Subcaves | Disturbed a concealed Subdweller 1716 | -10/Subcaves | Ambushed by Subdweller buried in earth 2166 | -10/Subcaves | Shifting Twisted Machinery released Sub. Shrapnel Launcher 2457 | -10/Subcaves | A Subdweller sparked back to life 2457 | -10/Subcaves | A Subdweller sparked back to life 2655 | -10/Subcaves | Discovered new exit (range 14) 2684 | -10/Subcaves | Core integrity fell below 50% 2946 | -10/Subcaves | Found Rainbow Chip 3828 | -10/Subcaves | Found Flightbrick 3987 | -10/Subcaves | Entered Recycling 4546 | -8/Recycling | Scanned before Scraplab entrance 4582 | -8/Recycling | Entered Scraplab 4602 | -8/Recycling | Discovered new exit (range 2) 4604 | -8/Recycling | Entered Scraptown 5019 | -8/Scraptown | Visited UFD Registry 5019 | -8/Scraptown | Registered with UFD as "Deathbot" 5121 | -8/Scraptown | Visited Abandonware Association 5170 | -8/Scraptown | Visited Junk Repository 5229 | -8/Scraptown | Visited Cartography Club 5276 | -8/Scraptown | Visited Infowarlord's Domain 5317 | -8/Scraptown | Visited Observation Area 5376 | -8/Scraptown | Visited Science Guys 5411 | -8/Scraptown | Visited Curators Association 5758 | -8/Scraptown | Scanned Subdweller tech in exchange for log data 5763 | -8/Scraptown | Learned location of Testing (-3) 5766 | -8/Scraptown | Learned location of Extension (-6) 5768 | -8/Scraptown | Learned Research terminal intel 5771 | -8/Scraptown | Learned Factory non-interactive machine intel 5803 | -8/Scraptown | Discovered new exit (range 13) 6052 | -8/Scraptown | Visited Cave Peace 6072 | -8/Scraptown | Visited SPCMW 6106 | -8/Scraptown | Visited CR-KLE's Repair Center 6192 | -8/Scraptown | Visited Symbiants 6322 | -8/Scraptown | Visited DA-N13 Charitable Foundation 6346 | -8/Scraptown | Found DCF Scrap (28 items) 6427 | -8/Scraptown | Delivered Scrap Shield to a Scientist 7881 | -8/Scraptown | Found Exp. Signal Interpreter 8078 | -8/Scraptown | Released all parts (7) 8112 | -8/Scraptown | Found Deep Structural Scanner 8119 | -8/Scraptown | Learned location of Cetus (-6) 8119 | -8/Scraptown | Learned 16 Factory zone layouts 8119 | -8/Scraptown | Learned 12 Research zone layouts 8119 | -8/Scraptown | Learned 4 Storage zone layouts 8119 | -8/Scraptown | Learned 4 Access zone layouts 8119 | -8/Scraptown | Learned 8 Lower Caves zone layouts 8119 | -8/Scraptown | Learned 12 Upper Caves zone layouts 8119 | -8/Scraptown | Learned 16 Upper Caves zone layouts 8119 | -8/Scraptown | Learned 20 Upper Caves zone layouts 8119 | -8/Scraptown | Learned Factory emergency access door positions 8119 | -8/Scraptown | Learned location of 1 exit from Research 8119 | -8/Scraptown | Learned 24 Proximity Caves zone layouts 8119 | -8/Scraptown | Learned location of 3 exits from Upper Caves 8160 | -8/Scraptown | Discovered new exit (range 19) 9464 | -8/Scraptown | Build established: Hauler-Mutant 12989 | -8/Scraptown | Entered Factory 12989 | -6/Factory | Evolved 8 slots: Propulsion x4, Utility x4 12990 | -6/Factory | Identified exit to Lower Caves 12990 | -6/Factory | Attached Flightbrick, gained temporary slots: Utility x3 12991 | -6/Factory | Identified exit to Extension 12991 | -6/Factory | Identified exit to Factory 12993 | -6/Factory | Loaded intel: 180 non-interactive machine locations 13283 | -6/Factory | Fabricated Nuclear Pulse Thruster? 13341 | -6/Factory | Discovered exit to Factory (range 16) 13372 | -6/Factory | Found Prototype Launcher 13372 | -6/Factory | Identified Rocket Array 13375 | -6/Factory | Found Rocket Array 13398 | -6/Factory | Spotted B-75 Beast 13415 | -6/Factory | Entered Extension 13418 | -6/Extension | Attached Rainbow Chip, gained temporary slots: Power, Propulsion, Utility, Weapon 13446 | -6/Extension | Rescued a captive Derelict 13447 | -6/Extension | Rescued a captive Derelict 13500 | -6/Extension | Lost 4 allies 13502 | -6/Extension | Destroyed 7 combat bots 13757 | -6/Extension | Build established: Hacker-Scout 13786 | -6/Extension | Rescued a captive Derelict 13947 | -6/Extension | Spotted B-75 Beast 13953 | -6/Extension | Spotted B-75 Beast 13970 | -6/Extension | Rescued a captive Derelict 13975 | -6/Extension | Rescued a captive Derelict 13975 | -6/Extension | Rescued a captive Derelict 13975 | -6/Extension | Rescued a captive Derelict 13979 | -6/Extension | Rescued a captive Derelict 13988 | -6/Extension | Rescued A7 13991 | -6/Extension | Lost 4 allies 13996 | -6/Extension | Rescued a captive Derelict 13997 | -6/Extension | Rescued a captive Derelict 14010 | -6/Extension | Rescued a captive Derelict 14013 | -6/Extension | Rescued a captive Derelict 14016 | -6/Extension | Rescued a captive Derelict 14126 | -6/Extension | Rescued a captive Derelict 14151 | -6/Extension | Discovered exit to Factory (range 10) 14152 | -6/Extension | Discovered new exit (range 6) 14163 | -6/Extension | Identified exit to Cetus 14202 | -6/Extension | Entered Cetus 14202 | -6/Cetus | Accompanied by 12 allies (A7) 14207 | -6/Cetus | Acquired a Cetus Manufacturing Module code from A7 14238 | -6/Cetus | Spotted Cetus Guard 14238 | -6/Cetus | Spotted Cetus Guard 14243 | -6/Cetus | Spotted Cetus Guard 14243 | -6/Cetus | Spotted Cetus Guard 14260 | -6/Cetus | Allies destroyed Cetus Guard 14260 | -6/Cetus | Allies destroyed Cetus Guard 14264 | -6/Cetus | Allies destroyed Cetus Guard 14267 | -6/Cetus | Allies destroyed Cetus Guard 14283 | -6/Cetus | Started Cetus Manufacturing Module 14294 | -6/Cetus | Escorted A7 to Cetus Mainframe 14295 | -6/Cetus | Lost 4 allies 14308 | -6/Cetus | Manufactured an Enhanced Grunt 14333 | -6/Cetus | Manufactured an Enhanced Grunt 14358 | -6/Cetus | Manufactured an Enhanced Grunt 14383 | -6/Cetus | Manufactured an Enhanced Grunt 14408 | -6/Cetus | Manufactured an Enhanced Grunt 14438 | -6/Cetus | Discovered new exit (range 15) 14455 | -6/Cetus | Identified exit to Archives 14470 | -6/Cetus | Entered Archives 14470 | -6/Archives | Accompanied by 13 allies (A7) 14475 | -6/Archives | Received a hacking code to weaken MAIN.C 14514 | -6/Archives | Discovered exit to Factory (range 16) 14519 | -6/Archives | Discovered new exit (range 16) 14522 | -6/Archives | Discovered new exit (range 14) 14629 | -6/Archives | Build established: Commander-Scout 14840 | -6/Archives | Identified exit to Hub_04(d) 14840 | -6/Archives | Entered Hub_04(d) 14840 | -6/Hub_04(d) | Accompanied by 10 allies 14868 | -6/Hub_04(d) | Network Hub disabled 14882 | -6/Hub_04(d) | Spotted Lightning 14883 | -6/Hub_04(d) | Spotted Lightning 14891 | -6/Hub_04(d) | Spotted Lightning 14895 | -6/Hub_04(d) | Discovered exit to Factory (range 9) 14899 | -6/Hub_04(d) | Entered Factory 14899 | -5/Factory | Evolved 2 slots: Power x1, Utility x1 14923 | -5/Factory | Scrapoid reinforcements arrived 14946 | -5/Factory | Identified exit to Upper Caves 15053 | -5/Factory | Discovered new exit (range 6) 15061 | -5/Factory | Fabricated Cld. VTOL Module? 15067 | -5/Factory | Identified exit to Factory 15133 | -5/Factory | Fabricated Cld. VTOL Module? 15155 | -5/Factory | Entered another Factory area 15155 | -4/Factory | Evolved 2 slots: Propulsion x1, Utility x1 15209 | -4/Factory | Manually triggered Chute Trap 15209 | -4/Factory | Sucked down chute 15209 | -4/Factory | Entered Waste 15222 | -4/Waste | Found Prototype Device 15222 | -4/Waste | Identified Adv. EM Disruption Field 15224 | -4/Waste | EMP discharged 15225 | -4/Waste | Spotted C-40 Crusher 15226 | -4/Waste | Spotted C-40 Crusher 15227 | -4/Waste | Spotted C-40 Crusher 15229 | -4/Waste | Spotted C-40 Crusher 15229 | -4/Waste | Spotted C-40 Crusher 15257 | -4/Waste | Destroyed C-40 Crusher 15260 | -4/Waste | Destroyed C-40 Crusher 15269 | -4/Waste | Destroyed C-40 Crusher 15272 | -4/Waste | Destroyed C-40 Crusher 15283 | -4/Waste | Spotted C-40 Crusher 15297 | -4/Waste | Discovered new exit (range 15) 15305 | -4/Waste | Identified exit to Factory 15305 | -4/Waste | Entered Factory 15340 | -4/Factory | Discovered new exit (range 6) 15419 | -4/Factory | Identified exit to Upper Caves 15445 | -4/Factory | Entered Upper Caves 15445 | -4/Upper Caves | Accompanied by 1 ally 15446 | -4/Upper Caves | Identified exit to Upper Caves 15447 | -4/Upper Caves | UFD Scientist delivered a prototype 15458 | -4/Upper Caves | Found Prototype Protection 15484 | -4/Upper Caves | Identified Enh. Scrap Shield 15530 | -4/Upper Caves | Learned location of Armory (-4) 15585 | -4/Upper Caves | Entered another Upper Caves area 15586 | -4/Upper Caves | Identified exit to Research 15586 | -4/Upper Caves | Identified exit to Warlord 15707 | -4/Upper Caves | A Commander dispatched an escort 15739 | -4/Upper Caves | Entered Warlord 15739 | -4/Warlord | Accompanied by 2 allies 15740 | -4/Warlord | Commander's escort returned to base 15740 | -4/Warlord | Commander's escort returned to base 15750 | -4/Warlord | System corruption cleaned by Quarantine Array 15764 | -4/Warlord | Build established: Hacker-Scout 15839 | -4/Warlord | Learned Quarantine emergency access door positions 15839 | -4/Warlord | Learned 4 Research zone layouts 15839 | -4/Warlord | Learned 4 Research zone layouts 15839 | -4/Warlord | Learned Research recycling unit intel 15846 | -4/Warlord | Rebuked by Warlord 15871 | -4/Warlord | Warlord's base attacked by MAIN.C 15967 | -4/Warlord | Found Prototype Piercing Weapon 15967 | -4/Warlord | Identified Vortex Lance 15969 | -4/Warlord | Found Vortex Lance 16021 | -4/Warlord | Found Prototype Device 16080 | -4/Warlord | Opened side exit 16164 | -4/Warlord | Discovered new exit (range 10) 16167 | -4/Warlord | Identified exit to Proximity Caves 16167 | -4/Warlord | Entered Proximity Caves 16195 | -3/Proximity Caves | Found DCF Scrap (13 items) 16265 | -3/Proximity Caves | Discovered exit to Research (range 5) 16266 | -3/Proximity Caves | Entered Research 16266 | -3/Research | Evolved 2 slots: Propulsion x1, Utility x1 16267 | -3/Research | Identified exit to Testing 16268 | -3/Research | Identified exit to Research 16269 | -3/Research | Identified Exp. Focal Shield 16270 | -3/Research | Loaded intel: 24 terminal locations 16271 | -3/Research | Loaded intel: 4 recycling unit locations 16350 | -3/Research | Found Adv. Powered Armor 16387 | -3/Research | Found Fusion Bomb Launcher 16421 | -3/Research | Fabricated Exp. Q-thruster? 16504 | -3/Research | Entered Testing 16525 | -3/Testing | Found Prototype Launcher 16525 | -3/Testing | Identified Hellfire Missile Launcher 16591 | -3/Testing | Found Prototype Ballistic Cannon 16591 | -3/Testing | Identified Perforator 16608 | -3/Testing | Found Prototype Device 16608 | -3/Testing | Identified AEGIS Remote Shield 16652 | -3/Testing | Found Prototype Energy Cannon 16652 | -3/Testing | Identified Null Cannon 16754 | -3/Testing | Search patrols dispatched 16773 | -3/Testing | Entered Research 16773 | -2/Research | Spotted B-90 Cyclops 16773 | -2/Research | Evolved 2 slots: Utility x2 16902 | -2/Research | Identified exit to Quarantine 16981 | -2/Research | Identified exit to Access 17055 | -2/Research | Search patrols dispatched 17059 | -2/Research | Scrapoids reinforcements arrived? 17062 | -2/Research | Fabricated Cmb. Linear Gravjet? 17071 | -2/Research | Garrison activated, responded to threat 17177 | -2/Research | Found Prototype Device 17177 | -2/Research | Identified Exp. EM Disruption Field 17252 | -2/Research | Spotted B-90 Cyclops 17254 | -2/Research | Entered Quarantine 17280 | -2/Quarantine | Found Alien Artifact 17280 | -2/Quarantine | Identified Core Reset Matrix 17280 | -2/Quarantine | Used Core Reset Matrix 17284 | -2/Quarantine | Detected hypermatrix surge 17284 | -2/Quarantine | Sensed 6 artifacts in vicinity 17444 | -2/Quarantine | Found Subatomic Replicator 17513 | -2/Quarantine | Found Phase Redirector 17561 | -2/Quarantine | Found Core Stripper 17648 | -2/Quarantine | Build established: Hacker-Mutant 17670 | -2/Quarantine | Scanned by Researcher 17792 | -2/Quarantine | First assault squad dispatched 17858 | -2/Quarantine | Spotted Alpha 7 17899 | -2/Quarantine | Discovered exit to Access (range 14) 17994 | -2/Quarantine | Spotted Fortress 17997 | -2/Quarantine | Lost 6 parts (1p2n3u) 18008 | -2/Quarantine | Destroyed Fortress 18019 | -2/Quarantine | Found Unknown Protection 18019 | -2/Quarantine | Identified Hvy. Insulated Plating 18023 | -2/Quarantine | Found Prototype Reactor 18023 | -2/Quarantine | Identified Vortex Chain Reactor 18026 | -2/Quarantine | Found Prototype Protection 18026 | -2/Quarantine | Identified Centrium Heavy Armor Plating 18051 | -2/Quarantine | Core integrity fell below 50% 18088 | -2/Quarantine | Destroyed 7 combat bots 18092 | -2/Quarantine | Lost 9 parts (1p3n4u1w) 18101 | -2/Quarantine | Found Exp. Force Field 18104 | -2/Quarantine | Found Vortex Chain Reactor 18122 | -2/Quarantine | Found Prototype Device 18122 | -2/Quarantine | Identified Thermal Barrier 18123 | -2/Quarantine | System corruption reached 10% 18153 | -2/Quarantine | Found Prototype Device 18153 | -2/Quarantine | Identified Exp. EM Disruption Field 18301 | -2/Quarantine | Discovered new exit (range 6) 18310 | -2/Quarantine | Entered Section 7 18311 | -2/Section 7 | Sensed 21 artifacts in vicinity 18340 | -2/Section 7 | Found Microwarp Drive 18429 | -2/Section 7 | Spotted B-90 Cyclops 18446 | -2/Section 7 | Destroyed 7 combat bots 18473 | -2/Section 7 | Found Integrated Dissipator 18473 | -2/Section 7 | Installed Integrated Dissipator, increased core heat dissipation (+20) 18476 | -2/Section 7 | Discovered exit to Access (range 3) 18479 | -2/Section 7 | Entered Access 18479 | -1/Access | Evolved 2 slots: Power x1, Weapon x1 18729 | -1/Access | First assault squad dispatched 18826 | -1/Access | Lost 4 parts (1n1u2w) 18950 | -1/Access | Lost 4 parts (3n1w) 19025 | -1/Access | Spotted B-99 Colossus 19138 | -1/Access | Used Subatomic Replicator to replicate Vortex Lance 19414 | -1/Access | Core integrity fell below 50% 19418 | -1/Access | Build established: Hacker-Gladiator 19436 | -1/Access | Lost 4 parts (2n2u) 19460 | -1/Access | Emitted hypermatrix ping 19465 | -1/Access | Assembled emerged from beneath the floor 19490 | -1/Access | Core integrity fell below 20% 19507 | -1/Access | Lost 6 allies 19539 | -1/Access | Core destroyed Last Messages --------------- 19490_ Microwarped (distance 13). 19491_ Microwarped (distance 7). 19492_ Microwarped (distance 14). 19493_ Detected hypermatrix ping. 19508_ P-80 Master resets P-80 Master, system corruption cleaned. 19509_ System corrupted: Cmb. Linear Gravjet rejected. 19510_ Quantum Reactor destroyed. 19518_ Microwarped (distance 7). 19519_ W-44 Eye sends out distress signal. 19519_ Microwarped (distance 11). 19520_ Microwarped (distance 6). 19521_ Microwarped (distance 18). 19522_ Quantum Reactor destroyed. 19522_ Microwarped (distance 6). 19524_ Microwarped (distance 9). 19536_ Microwarped (distance 16). 19537_ Microwarped (distance 12). 19538_ Microwarped (distance 13). 19539_ Detected hypermatrix ping. 19539_ Microwarped (distance 3). Map ----- +----------------------------------------------------+ | ??????????????????????# #????????????????? | | ??????????????????????# #????????????????? | | ??????????????????????# #??????????????#?? | | ??????????????????????# #?????????????#??? | | ????????????????##+##+# #???????????#?#?#? | | ????????????????? +?????????????##?? | | ?????????????????# #????????#?????#?? | | ?????????????????# #????????????????? | | ?????????????????# #??????? ????##??? | | ?????????????????# #?????? ??????#?#? | | ???????????####### #??????????#?????? | | ???????????# #???????#???##???# | | ???????????# ###???#?? ??????? | | ???????????# ????## #?????# | | ???????????# " !! ????#? | | ???????????# """ ! "????# | | ???????????# """ "????? | | ????????? " ! t ????? | | ??????????# F??#?? | | ??######### !! "???#? | | ?? !! " " #?##?? | | ## !! " "T" "????? | | u """ """ ###### | | ""? k """ # ! | | ""T"" " # | | "" "" @ # ""G | | # # " | | / " | | ## * " " % # | | #???? """ """ # | | #???????? """ """ # | | #????????????? " " ################# | | #????????????? #???????????????? | | #???????????? #????????????#?#? | | #??????????? #???????????????? | | #??????????# [ #???????????????? | | +??????????? #???????????????? | | ##??????????? ""Y"" ? #???????????????? | | ?????????????? ????? ????#???????????????? | | ????????????? ?#?#???????????????????????????? | | ????????????? ????????????????????????????????? | | ?????????????????????????????????????????????? | | ????????????????????????????????????????????? | | #####????????????????????????????????????????????? | | ?????????????????????????????????????????????????? | | ?????????????????????????????????????????????????? | | ?????????????????????????????????????????????????? | | ?????????????????????????????????????????????????? | | ?????????????????????????????????????????????????? | | ?????????????????????????????????????????????????? | +----------------------------------------------------+ Best States ------------- Heat Dissipation 162 Coolant Potential 220 Energy Generation 65 Energy Capacity 1450 Matter Stores 300 Matter Capacity 450 Sight Range 21 Robot Scan Range 18 Terrain Scan Density 10 Additional Mass Support 9 EM Shielding 4 Corruption Containment 24 Armor Coverage 800 Resistance: KI 30 Resistance: TH 50 Resistance: EM 75 Propulsion Shielding 66 Utility Shielding 66 Weapon Shielding 90 Point Defense Rating 240 Phase Shifting 15 Evasion (%) 74 Melee Accuracy 8 Core Analysis 6 Armor Integrity Analysis 30 Recoil Reduction 8 Energy Filtering 30 Offensive Hacking 34 Defensive Hacking 24 Authchip Count 1 Item Schematics ----------------- Prc. Matter Filter | -2/Quarantine | Archive Exp. Terrain Scan Processor | -2/Quarantine | Archive Exp. Force Field | -2/Quarantine | Archive Gravity Neutralizer | -2/Quarantine | Archive Com. Linear Accelerator | -2/Quarantine | Archive Robot Schematics ------------------ K-01 Serf | -2/Quarantine | Archive C-65 Expert | -2/Quarantine | Archive Fabricated ------------ Nuclear Pulse Thruster | x2 | -6/Factory Cld. VTOL Module | x1 | -5/Factory Cld. VTOL Module | x1 | -5/Factory Exp. Q-thruster | x1 | -3/Research | Preloaded Cmb. Linear Gravjet | x2 | -2/Research | Authchip Alien Tech Used ----------------- Core Reset Matrix Core Stripper Phase Redirector Microwarp Drive Integrated Dissipator Subatomic Replicator Achievements -------------- None Challenges ------------ None Game ------ Seed DecoderSigixTerminator Manual? 0 Play Time 02:51:18 Cumulative 234.6 hours Start 2024.08.13 @ 09:34:03 End 2024.08.13 @ 13:38:36 Sessions 5 Manual Loads 0 Difficulty Rogue Special Mode None Game No. 245 Rogue 209 Adventurer 36 Explorer 0 Win Type - Total 10 Types 3/0/7/0/0/0/0/0/0 Lore% 61 Gallery% 81 Achievement% 71 Wizard Run 0 Options --------- Layout 0 ASCII 0 Keyboard 0 Movement Mouse Keybinds 0 Fullscreen 1 Font 18/SmallcapsGlow Map View 76x50 Zoom Use 0% Tactical HUD 1 Map Filters NONE Filters NONE Steam 1 RUN: 279baca5-4042-40ec-bd1b-06cc5c1e9de1